fUST/lending_fUST_20250810
["ID","MTS","AMOUNT","RATE_DAILY","PERIOD"]
[378185844,1754772653359,-160.0,0.00025,10]
[378185845,1754772653368,-160.0,0.00025,7]
[378185846,1754772653378,-12666.14847857,0.00025,7]
[378185847,1754772653387,-231.92402426,0.00025,7]
[378185848,1754772653396,-160.0,0.00025,10]
[378185849,1754772653406,-151.0,0.00025,7]
[378185850,1754772653415,-500.0,0.00025001,7]
[378185851,1754772653425,-2164.82851666,0.00025078,2]
[378185852,1754772653434,-867.34,0.00025078,2]
[378185853,1754772653443,-460.0,0.00025078,2]
[378185854,1754772653453,-949.37,0.00025078,2]
[378185855,1754772653462,-856.04,0.00025078,2]
[378185856,1754772653471,-1178.3,0.00025078,2]
[378185857,1754772653481,-640.72,0.00025078,2]
[378185858,1754772653491,-460.0,0.00025078,2]
[378185859,1754772653501,-460.0,0.00025078,2]
[378185860,1754772653511,-460.0,0.00025079,2]
[378185861,1754772653521,-460.0,0.00025079,2]
[378185862,1754772653530,-821.87,0.00025079,2]
[378185863,1754772653540,-460.0,0.00025079,2]
[378185864,1754772653550,-460.0,0.00025079,2]
[378185865,1754772653560,-1041.02,0.00025079,2]
[378185866,1754772653570,-2154.53,0.00025079,2]
[378185867,1754772653580,-646.88,0.00025079,2]
[378185868,1754772653589,-460.0,0.00025079,2]
[378185869,1754772653599,-151.0,0.00025079,7]
[378185870,1754772653608,-545.0,0.00025079,2]
[378185871,1754772653618,-693.43,0.00025079,2]
[378185872,1754772653627,-932.79,0.00025079,2]
[378185873,1754772653636,-460.0,0.00025079,2]
[378185874,1754772653646,-576.52,0.0002508,2]
[378185875,1754772653655,-334.623946,0.0002508,7]
[378185876,1754772653664,-460.0,0.0002508,2]
[378185877,1754772653674,-334.623946,0.0002508,7]
[378185878,1754772653684,-151.0,0.0002508,7]
[378185879,1754772653694,-151.0,0.0002508,7]
[378185880,1754772653703,-151.0,0.0002508,7]
[378185881,1754772653714,-318.398165,0.00025082,7]
[378185882,1754772653723,-318.398165,0.00025082,7]
[378185883,1754772653732,-151.0,0.00025083,7]
[378185884,1754772653742,-151.0,0.00025083,7]
[378185885,1754772653751,-151.0,0.00025083,7]
[378185886,1754772653760,-151.0,0.00025083,7]
[378185887,1754772653769,-292.41607,0.00025083,7]
[378185888,1754772653779,-151.0,0.00025115,7]
[378185889,1754772653790,-151.0,0.00025115,7]
[378185890,1754772653799,-473.605435,0.00025115,7]
[378185891,1754772653808,-473.605435,0.00025115,7]
[378185892,1754772653818,-151.0,0.00025115,7]
[378185893,1754772653938,-151.0,0.00025115,7]
[378185894,1754772653948,-151.0,0.00025117,7]
[378185895,1754772653957,-152.143532,0.00025117,7]
[378185896,1754772653967,-153.624172,0.00025127,3]
[378185897,1754772653976,-186.796422,0.00025136,7]
[378185898,1754772653986,-958.0,0.00025143,2]
[378185899,1754772653996,-334.0,0.00025151,15]
[378185900,1754772654006,-7966.70543509,0.00025162,7]
[378185901,1754772654015,-151.0,0.00025162,7]
[378185902,1754772654024,-151.0,0.00025162,7]
[378185903,1754772654033,-4644.01049864,0.00025164,2]
[378185904,1754772654042,-151.0,0.00025164,7]
[378185905,1754772654052,-151.0,0.00025164,7]
[378185906,1754772654061,-151.0,0.00025164,7]
[378185907,1754772654070,-151.0,0.00025164,7]
[378185908,1754772654081,-151.0,0.00025184,7]
[378185909,1754772654090,-439.0,0.00025192,2]
[378185910,1754772654099,-397.01908643,0.00025206,2]
[378185911,1754772654109,-497.0,0.00025206,2]
[378185912,1754772654119,-500.0,0.00025206,2]
[378185913,1754772654129,-151.0,0.00025206,2]
[378185914,1754772654139,-958.0,0.00025221,2]
[378185915,1754772654148,-150.0,0.00025273,2]
[378185916,1754772654158,-150.52451577,0.00025273,2]
[378185917,1754772654168,-151.0,0.0002529,7]
[378185918,1754772654178,-50000.0,0.000253,7]
[378185919,1754772654188,-151.556225,0.000253,7]
[378185920,1754772654198,-151.0,0.000253,7]
[378185921,1754772654207,-152.488091,0.000253,7]
[378185922,1754772654216,-151.0,0.000253,7]
[378185923,1754772654227,-151.0,0.000253,7]
[378185924,1754772654236,-473.605435,0.000253,7]
[378185925,1754772654246,-473.605435,0.000253,7]
[378185926,1754772654255,-151.0,0.000253,7]
[378185927,1754772654264,-151.0,0.000253,7]
[378185928,1754772654274,-285.320423,0.000253,7]
[378185929,1754772654283,-151.0,0.000253,7]
[378185930,1754772654293,-151.0,0.000253,7]
[378185931,1754772654303,-301.999999,0.000253,7]
[378185932,1754772654313,-151.0,0.000253,7]
[378185933,1754772654322,-151.0,0.000253,7]
[378185934,1754772654332,-292.41607,0.000253,7]
[378185935,1754772654342,-292.41607,0.000253,7]
[378185936,1754772654352,-151.0,0.000253,7]
[378185937,1754772654361,-218.834805,0.000253,7]
[378185938,1754772654370,-218.834805,0.000253,7]
[378185939,1754772654380,-151.0,0.000253,7]
[378185940,1754772654390,-342.988634,0.000253,7]
[378185941,1754772654399,-342.988634,0.000253,7]
[378185942,1754772654408,-831.880868,0.000253,7]
[378185943,1754772654418,-831.880868,0.000253,7]
[378185944,1754772654427,-151.0,0.000253,7]
[378185945,1754772654437,-151.0,0.000253,7]
[378185946,1754772654447,-151.0,0.000253,7]
[378185947,1754772654456,-284.341473,0.000253,7]
[378185948,1754772654466,-284.341473,0.000253,7]
[378185949,1754772654476,-151.0,0.000253,7]
[378185950,1754772654486,-477.98,0.00025321,2]
[378185951,1754772654496,-318.398165,0.00025326,7]
[378185952,1754772654506,-318.398165,0.00025326,7]
[378185953,1754772654515,-200.0,0.0002533,13]
[378185954,1754772654524,-153.624172,0.00025337,7]
[378185955,1754772654534,-958.0,0.00025339,2]
[378185956,1754772654543,-179.91004498,0.00025349,2]
[378185957,1754772654553,-867.34,0.00025352,2]
[378185958,1754772654563,-460.0,0.00025352,2]
[378185959,1754772654573,-949.37,0.00025352,2]
[378185960,1754772654584,-856.04,0.00025352,2]
[378185961,1754772654594,-1178.3,0.00025352,2]
[378185962,1754772654603,-640.72,0.00025352,2]
[378185963,1754772654614,-460.0,0.00025352,2]
[378185964,1754772654623,-460.0,0.00025352,2]
[378185965,1754772654633,-460.0,0.00025353,2]
[378185966,1754772654642,-460.0,0.00025353,2]
[378185967,1754772654652,-821.87,0.00025353,2]
[378185968,1754772654662,-460.0,0.00025353,2]
[378185969,1754772654671,-460.0,0.00025353,2]
[378185970,1754772654680,-1041.02,0.00025353,2]
[378185971,1754772654690,-2154.53,0.00025353,2]
[378185972,1754772654700,-646.88,0.00025353,2]
[378185973,1754772654710,-460.0,0.00025353,2]
[378185974,1754772654719,-545.0,0.00025353,2]
[378185975,1754772654728,-693.43,0.00025353,2]
[378185976,1754772654738,-932.79,0.00025353,2]
[378185977,1754772654747,-460.0,0.00025353,2]
[378185978,1754772654757,-151.0,0.00025354,7]
[378185979,1754772654767,-151.0,0.00025354,7]
[378185980,1754772654776,-460.0,0.00025354,2]
[378185981,1754772654786,-151.0,0.00025355,7]
[378185982,1754772654795,-958.0,0.00025392,2]
[378185983,1754772654804,-760.0,0.000254,2]
[378185984,1754772654814,-300.0,0.00025421,2]
[378185985,1754772654823,-587.0,0.0002543,2]
[378185986,1754772654835,-900.0,0.00025469,3]
[378185987,1754772654845,-16324.37472944,0.0002547,2]
[378185988,1754772654854,-186.796422,0.0002547,7]
[378185989,1754772654864,-497.0,0.0002548,2]
[378185990,1754772654873,-151.0,0.0002548,2]
[378185991,1754772654883,-1000.0,0.000255,2]
[378185992,1754772654892,-3000.0,0.00025502,2]
[378185993,1754772654902,-3000.0,0.00025502,2]
[378185994,1754772654911,-1000.0,0.00025521,2]
[378185995,1754772654920,-1200.0,0.00025521,2]
[378185996,1754772654930,-250.0,0.00025521,2]
[378185997,1754772654940,-8068.16960751,0.00025535,2]
[378185998,1754772654949,-3248.0,0.00025538,2]
[378185999,1754772654958,-958.0,0.00025573,2]
[378186000,1754772654969,-958.0,0.00025576,2]
[378186001,1754772654980,-306.65,0.00025586,7]
[378186002,1754772654989,-867.34,0.00025626,2]
[378186003,1754772654999,-460.0,0.00025626,2]
[378186004,1754772655009,-949.37,0.00025626,2]
[378186005,1754772655018,-856.04,0.00025626,2]
[378186006,1754772655032,-1178.3,0.00025626,2]
[378186007,1754772655042,-640.72,0.00025626,2]
[378186008,1754772655051,-460.0,0.00025626,2]
[378186009,1754772655061,-460.0,0.00025626,2]
[378186010,1754772655071,-460.0,0.00025627,2]
[378186011,1754772655080,-165.9785696,0.00025627,2]
[378186012,1754772655090,-821.87,0.00025627,2]
[378186013,1754772655099,-460.0,0.00025627,2]
[378186014,1754772655111,-460.0,0.00025627,2]
[378186015,1754772655122,-1041.02,0.00025627,2]
[378186016,1754772655134,-2154.53,0.00025627,2]
[378186017,1754772655143,-646.88,0.00025627,2]
[378186018,1754772655153,-460.0,0.00025627,2]
[378186019,1754772655163,-545.0,0.00025627,2]
[378186020,1754772655172,-693.43,0.00025627,2]
[378186021,1754772655182,-932.79,0.00025627,2]
[378186022,1754772655191,-567.0616523,0.00025627,2]
[378186023,1754772655200,-460.0,0.00025628,2]
[378186024,1754772655210,-153.728938,0.00025635,7]
[378186025,1754772655221,-151.0,0.00025635,7]
[378186026,1754772655230,-342.988634,0.00025635,7]
[378186027,1754772655239,-342.988634,0.00025635,7]
[378186028,1754772655249,-151.0,0.00025635,7]
[378186029,1754772655258,-439.0,0.00025663,2]
[378186030,1754772655267,-156.865812,0.00025683,7]
[378186031,1754772655277,-153.624172,0.00025683,7]
[378186032,1754772655286,-958.0,0.00025683,2]
[378186033,1754772655296,-151.0,0.00025719,7]
[378186034,1754772655305,-254.87933743,0.00025723,2]
[378186035,1754772655315,-151.0,0.0002574,7]
[378186036,1754772655324,-284.341473,0.0002574,7]
[378186037,1754772655334,-284.341473,0.0002574,7]
[378186038,1754772655343,-497.0,0.00025754,2]
[378186039,1754772655352,-198.0,0.00025754,2]
[378186040,1754772655361,-218.834805,0.00025767,7]
[378186041,1754772655371,-218.834805,0.00025767,7]
[378186042,1754772655380,-160.0,0.00025793,4]
[378186043,1754772655390,-151.0,0.00025793,7]
[378186044,1754772655399,-250.0,0.00025821,2]
[378186045,1754772655409,-151.0,0.00025821,7]
[378186046,1754772655418,-151.0,0.00025821,7]
[378186047,1754772655427,-318.398165,0.00025824,7]
[378186048,1754772655438,-318.398165,0.00025824,7]
[378186049,1754772655448,-831.880868,0.00025824,7]
[378186050,1754772655458,-831.880868,0.00025824,7]
[378186051,1754772655468,-151.0,0.00025824,7]
[378186052,1754772655478,-151.0,0.00025824,7]
[378186053,1754772655488,-151.0,0.00025883,7]
[378186054,1754772655498,-151.0,0.00025898,7]
[378186055,1754772655508,-867.34,0.000259,2]
[378186056,1754772655516,-460.0,0.000259,2]
[378186057,1754772655526,-949.37,0.000259,2]
[378186058,1754772655536,-856.04,0.000259,2]
[378186059,1754772655546,-1178.3,0.000259,2]
[378186060,1754772655555,-640.72,0.000259,2]
[378186061,1754772655564,-460.0,0.000259,2]
[378186062,1754772655574,-460.0,0.000259,2]
[378186063,1754772655584,-404.04,0.00025901,2]
[378186064,1754772655594,-334.623946,0.00025901,7]
[378186065,1754772655603,-334.623946,0.00025901,7]
[378186066,1754772655612,-151.0,0.00025901,7]
[378186067,1754772655622,-232.73495,0.00025901,7]
[378186068,1754772655631,-821.87,0.00025901,2]
[378186069,1754772655640,-460.0,0.00025901,2]
[378186070,1754772655650,-460.0,0.00025901,2]
[378186071,1754772655659,-1041.02,0.00025901,2]
[378186072,1754772655669,-2154.53,0.00025901,2]
[378186073,1754772655678,-646.88,0.00025901,2]
[378186074,1754772655687,-460.0,0.00025901,2]
[378186075,1754772655696,-545.0,0.00025901,2]
[378186076,1754772655705,-693.43,0.00025901,2]
[378186077,1754772655714,-932.79,0.00025901,2]
[378186078,1754772655724,-460.0,0.00025902,2]
[378186079,1754772655733,-151.0,0.00025904,7]
[378186080,1754772655743,-292.41607,0.00025904,7]
[378186081,1754772655752,-292.41607,0.00025904,7]
[378186082,1754772655761,-151.0,0.00025923,7]
[378186083,1754772655771,-860.0,0.00025948,2]
[378186084,1754772655780,-153.624172,0.0002596,3]
[378186085,1754772655790,-483.00602195,0.00025968,2]
[378186086,1754772655799,-151.0,0.0002599,7]
[378186087,1754772655808,-38774.11870216,0.00026,10]
[378186088,1754772655817,-520.2773263,0.00026,2]
[378186089,1754772655826,-19900.0,0.00026,2]
[378186090,1754772655837,-161.0,0.00026,5]
[378186091,1754772655846,-31184.69893817,0.00026,7]
[378186092,1754772655855,-256.902791,0.00026,7]
[378186093,1754772655864,-277.656296,0.00026,7]
[378186094,1754772655874,-186.796422,0.00026,7]
[378186095,1754772655883,-151.0,0.00026,7]
[378186096,1754772655892,-151.0,0.00026,7]
[378186097,1754772655902,-473.605435,0.00026,7]
[378186098,1754772655911,-473.605435,0.00026,7]
[378186099,1754772655921,-151.0,0.00026,7]
[378186100,1754772655930,-151.0,0.00026,7]
[378186101,1754772655939,-151.0,0.00026,7]
[378186102,1754772655948,-292.41607,0.00026,7]
[378186103,1754772655957,-292.41607,0.00026,7]
[378186104,1754772655966,-151.0,0.00026,7]
[378186105,1754772655975,-318.398165,0.00026,7]
[378186106,1754772655984,-318.398165,0.00026,7]
[378186107,1754772655993,-218.834805,0.00026,7]
[378186108,1754772656003,-218.834805,0.00026,7]
[378186109,1754772656012,-151.0,0.00026,7]
[378186110,1754772656022,-151.0,0.00026,7]
[378186111,1754772656034,-342.988634,0.00026,7]
[378186112,1754772656044,-342.988634,0.00026,7]
[378186113,1754772656053,-831.880868,0.00026,7]
[378186114,1754772656062,-831.880868,0.00026,7]
[378186115,1754772656071,-151.0,0.00026,7]
[378186116,1754772656081,-151.0,0.00026,7]
[378186117,1754772656090,-235.944734,0.00026,7]
[378186118,1754772656100,-284.341473,0.00026,7]
[378186119,1754772656109,-284.341473,0.00026,7]
[378186120,1754772656119,-151.0,0.00026,7]
[378186121,1754772656128,-151.0,0.00026,7]
[378186122,1754772656137,-151.0,0.00026,7]
[378186123,1754772656147,-312.16666667,0.00026,10]
[378186124,1754772656156,-461.55179734,0.00026,10]
[378186125,1754772656166,-216.61183532,0.00026,10]
[378186126,1754772656175,-215.40758176,0.00026,10]
[378186127,1754772656185,-842.95011917,0.00026,10]
[378186128,1754772656194,-527.77735381,0.00026,10]
[378186129,1754772656203,-160.0,0.00026,10]
[378186130,1754772656213,-12666.14847857,0.00026,10]
[378186131,1754772656223,-231.92402426,0.00026,10]
[378186132,1754772656232,-160.0,0.00026,10]
[378186133,1754772656241,-497.0,0.00026028,2]
[378186134,1754772656251,-1521.75549115,0.0002605,2]
[378186135,1754772656261,-3500.0,0.0002605,2]
[378186136,1754772656270,-1800.0,0.00026068,2]
[378186137,1754772656279,-350.0,0.00026068,2]
[378186138,1754772656289,-506.46984032,0.00026068,2]
[378186139,1754772656298,-318.66,0.00026085,2]
[378186140,1754772656307,-604.46,0.00026093,2]
[378186141,1754772656316,-191.16789962,0.0002616,2]
[378186142,1754772656326,-1600.0,0.00026169,2]
[378186143,1754772656337,-831.880868,0.00026169,7]
[378186144,1754772656346,-831.880868,0.00026169,7]
[378186145,1754772656356,-151.0,0.00026169,7]
[378186146,1754772656365,-284.341473,0.00026169,7]
[378186147,1754772656375,-284.341473,0.00026169,7]
[378186148,1754772656384,-867.34,0.00026174,2]
[378186149,1754772656393,-460.0,0.00026174,2]
[378186150,1754772656403,-949.37,0.00026174,2]
[378186151,1754772656412,-856.04,0.00026174,2]
[378186152,1754772656422,-1178.3,0.00026174,2]
[378186153,1754772656432,-640.72,0.00026174,2]
[378186154,1754772656442,-460.0,0.00026174,2]
[378186155,1754772656452,-460.0,0.00026174,2]
[378186156,1754772656461,-821.87,0.00026175,2]
[378186157,1754772656471,-460.0,0.00026175,2]
[378186158,1754772656480,-460.0,0.00026175,2]
[378186159,1754772656489,-1041.02,0.00026175,2]
[378186160,1754772656499,-2154.53,0.00026175,2]
[378186161,1754772656508,-646.88,0.00026175,2]
[378186162,1754772656517,-460.0,0.00026175,2]
[378186163,1754772656638,-545.0,0.00026175,2]
[378186164,1754772656648,-693.43,0.00026175,2]
[378186165,1754772656658,-932.79,0.00026175,2]
[378186166,1754772656668,-460.0,0.00026176,2]
[378186167,1754772656679,-151.0,0.00026176,7]
[378186168,1754772656688,-151.0,0.00026176,7]
[378186169,1754772656698,-318.66,0.00026179,2]
[378186170,1754772656708,-151.0,0.00026183,7]
[378186171,1754772656717,-151.0,0.00026183,7]
[378186172,1754772656727,-151.0,0.00026191,7]
[378186173,1754772656736,-318.66,0.00026274,2]
[378186174,1754772656746,-22676.00998494,0.000263,7]
[378186175,1754772656844,-17439.05120019,0.000263,7]
[378186177,1754772699219,4901.08979876,0.000222,69]
[378186178,1754772700037,4537.13242731,0.000199,2]
[378186179,1754772704212,4901.08979874,0.00023928,76]
[378186180,1754772709483,4901.08979874,0.00026441,87]
[378186181,1754772830495,24900.0,0.00020751,2]
[378186183,1754772918906,4382.57289073,0.000199,2]
[378186185,1754772973242,160.4860294,0.00027644,30]
[378186186,1754772973660,579.5619394,0.00027644,30]
[378186187,1754772973768,153.0,0.00027644,30]
[378186188,1754772974373,293.2387763,0.00027644,30]
[378186189,1754772982438,169.91955832,0.00021416,2]
[378186190,1754773033696,293.2387763,0.00027616,30]
[378186191,1754773034259,160.4860294,0.00027644,30]
[378186192,1754773034289,579.5619394,0.00027616,30]
[378186193,1754773035526,153.0,0.00027644,30]
[378186194,1754773058857,157.610126,0.00020619,2]
[378186195,1754773093627,579.5619394,0.00027616,30]
[378186196,1754773093766,153.0,0.00027616,30]
[378186197,1754773093816,293.2387763,0.00027616,30]
[378186198,1754773093844,160.4860294,0.00027616,30]
[378186199,1754773093872,160.8257755,0.00027644,30]
[378186200,1754773105684,4236.48268493,0.000199,2]
[378186201,1754773122868,292.2684795,0.00027534,30]
[378186202,1754773123118,561.710123,0.00027534,30]
[378186203,1754773123245,160.4860294,0.00027616,30]
[378186204,1754773153691,160.4860294,0.00027616,30]
[378186205,1754773153719,153.0000001,0.00027616,30]
[378186206,1754773154596,153.0,0.00027616,30]
[378186207,1754773168695,460.0,0.00031511,30]
[378186208,1754773178330,169.91955828,0.00021416,2]
[378186209,1754773182902,421.4586267,0.00027589,30]
[378186210,1754773213729,153.0,0.00027616,30]
[378186211,1754773213823,153.0,0.00027616,30]
[378186212,1754773273947,314.4346216,0.00027616,30]
[378186213,1754773276445,153.0,0.00027616,30]
[378186214,1754773297068,4782.84045177,0.000199,2]
[378186215,1754773307922,1960.43591952,0.000222,69]
[378186216,1754773312904,1960.43591949,0.00023914,76]
[378186217,1754773317927,1960.43591949,0.00026413,87]
[378186218,1754773334540,153.0,0.00027616,30]
[378186219,1754773364383,169.91955828,0.00021416,2]
[378186220,1754773393944,153.0,0.00027589,30]
[378186221,1754773454105,153.0,0.00027589,30]
[378186222,1754773479552,4623.41243674,0.000199,2]
[378186223,1754773513799,153.0,0.00027589,30]
[378186224,1754773534015,169.91955828,0.00021415,2]
[378186225,1754773574995,153.0,0.00027534,30]
[378186226,1754773594861,5000.0,0.00019178,2]
[378186227,1754773664986,5349.41187527,0.000199,2]
[378186228,1754773689291,169.91955828,0.00021415,2]
[378186231,1754773744147,484.231716,0.00013699,2]
[378186232,1754773744407,484.231716,0.00020187,2]
[378186287,1754773832782,-838.0,0.00021513,2]
[378186289,1754773832791,-1200.0,0.00021513,2]
[378186291,1754773832800,-893.73710718,0.00021514,2]
[378186293,1754773832812,-486.05013703,0.00021514,2]
[378186296,1754773832824,-849.24541962,0.00021514,2]
[378186410,1754773837293,-2978.11682452,0.00021514,2]
[378186411,1754773837306,-6281.30685115,0.00021514,2]
[378186412,1754773837344,-470.36134926,0.00021514,2]
[378186454,1754773838702,-1708.75366813,0.00021514,2]
[378186457,1754773838712,-1310.15,0.00021514,2]
[378186459,1754773838721,-460.0,0.00021514,2]
[378186461,1754773838731,-353.61796025,0.00021514,2]
[378186463,1754773838740,-460.0,0.00021514,2]
[378186465,1754773838750,-460.0,0.00021514,2]
[378186467,1754773838759,-460.0,0.00021514,2]
[378186469,1754773838768,-460.0,0.00021514,2]
[378186471,1754773838778,-460.0,0.00021514,2]
[378186473,1754773838787,-460.0,0.00021514,2]
[378186475,1754773838796,-460.0,0.00021514,2]
[378186477,1754773838806,-460.0,0.00021514,2]
[378186479,1754773838815,-460.0,0.00021514,2]
[378186481,1754773838824,-460.0,0.00021514,2]
[378186483,1754773838833,-460.0,0.00021514,2]
[378186485,1754773838843,-460.0,0.00021514,2]
[378186487,1754773838853,-460.0,0.00021514,2]
[378186488,1754773838862,-460.0,0.00021514,2]
[378186490,1754773838871,-460.0,0.00021514,2]
[378186492,1754773838880,-460.0,0.00021514,2]
[378186495,1754773838891,-460.0,0.00021514,2]
[378186496,1754773838903,-460.0,0.00021514,2]
[378186498,1754773838913,-460.0,0.00021514,2]
[378186500,1754773838922,-460.0,0.00021514,2]
[378186502,1754773838932,-460.0,0.00021514,2]
[378186504,1754773838941,-460.0,0.00021514,2]
[378186506,1754773838951,-460.0,0.00021515,2]
[378186508,1754773838960,-251.09832518,0.00021515,2]
[378186510,1754773838970,-460.0,0.00021515,2]
[378186512,1754773838980,-460.0,0.00021515,2]
[378186514,1754773838989,-530.6629841,0.00021515,2]
[378186515,1754773838999,-460.0,0.00021515,2]
[378186516,1754773839008,-371.54503622,0.00021515,2]
[378186517,1754773839018,-460.0,0.00021515,2]
[378186518,1754773839027,-460.0,0.00021515,2]
[378186519,1754773839037,-460.0,0.00021515,2]
[378186520,1754773839046,-460.0,0.00021515,2]
[378186521,1754773839056,-463.80845036,0.00021515,2]
[378186522,1754773839065,-468.44711553,0.00021515,2]
[378186523,1754773839075,-460.0,0.00021515,2]
[378186524,1754773839084,-460.0,0.00021515,2]
[378186525,1754773839093,-460.0,0.00021515,2]
[378186526,1754773839103,-460.0,0.00021515,2]
[378186527,1754773839112,-460.0,0.00021515,2]
[378186528,1754773839122,-460.0,0.00021515,2]
[378186529,1754773839131,-460.0,0.00021515,2]
[378186530,1754773839140,-945.05,0.00021515,2]
[378186531,1754773839150,-460.0,0.00021515,2]
[378186532,1754773839159,-460.0,0.00021515,2]
[378186533,1754773839169,-460.0,0.00021515,2]
[378186534,1754773839178,-460.0,0.00021515,2]
[378186535,1754773839187,-460.0,0.00021515,2]
[378186536,1754773839197,-460.0,0.00021515,2]
[378186537,1754773839207,-460.0,0.00021515,2]
[378186538,1754773839217,-460.0,0.00021515,2]
[378186539,1754773839227,-460.0,0.00021515,2]
[378186540,1754773839236,-460.0,0.00021515,2]
[378186541,1754773839246,-500.0,0.00021515,2]
[378186542,1754773839255,-460.0,0.00021515,2]
[378186543,1754773839264,-460.0,0.00021515,2]
[378186544,1754773839274,-512.47,0.00021515,2]
[378186545,1754773839283,-460.0,0.00021515,2]
[378186546,1754773839292,-460.0,0.00021515,2]
[378186547,1754773839302,-460.0,0.00021515,2]
[378186548,1754773839311,-460.0,0.00021515,2]
[378186549,1754773839321,-460.0,0.00021515,2]
[378186550,1754773839330,-460.0,0.00021515,2]
[378186551,1754773839339,-460.0,0.00021515,2]
[378186552,1754773839349,-460.0,0.00021515,2]
[378186553,1754773839358,-460.0,0.00021515,2]
[378186554,1754773839368,-460.0,0.00021515,2]
[378186555,1754773839378,-460.0,0.00021515,2]
[378186556,1754773839387,-460.0,0.00021515,2]
[378186557,1754773839396,-460.0,0.00021515,2]
[378186558,1754773839406,-460.0,0.00021515,2]
[378186559,1754773839415,-460.0,0.00021515,2]
[378186560,1754773839424,-460.0,0.00021515,2]
[378186561,1754773839433,-460.0,0.00021515,2]
[378186562,1754773839443,-460.0,0.00021515,2]
[378186563,1754773839452,-460.0,0.00021515,2]
[378186564,1754773839461,-460.0,0.00021515,2]
[378186565,1754773839471,-460.0,0.00021515,2]
[378186566,1754773839480,-347.23,0.00021515,2]
[378186567,1754773839490,-414.87147844,0.00021515,2]
[378186568,1754773839499,-460.0,0.00021515,2]
[378186569,1754773839510,-460.0,0.00021515,2]
[378186570,1754773839681,-461.49268123,0.00021515,2]
[378186571,1754773839692,-460.0,0.00021515,2]
[378186572,1754773839701,-509.73952921,0.00021515,2]
[378186573,1754773839710,-460.0,0.00021515,2]
[378186574,1754773839720,-460.0,0.00021515,2]
[378186575,1754773839729,-460.0,0.00021515,2]
[378186576,1754773839739,-460.0,0.00021515,2]
[378186577,1754773839749,-460.0,0.00021515,2]
[378186578,1754773839759,-460.0,0.00021515,2]
[378186579,1754773839768,-460.0,0.00021516,2]
[378186580,1754773839778,-349.14800454,0.00021516,2]
[378186581,1754773839787,-460.0,0.00021516,2]
[378186582,1754773839797,-460.0,0.00021516,2]
[378186583,1754773839806,-460.0,0.00021516,2]
[378186584,1754773839816,-460.0,0.00021516,2]
[378186585,1754773839825,-500.0,0.00021516,2]
[378186586,1754773839835,-460.0,0.00021516,2]
[378186587,1754773839844,-460.0,0.00021516,2]
[378186588,1754773839854,-460.0,0.00021516,2]
[378186589,1754773839864,-460.0,0.00021516,2]
[378186590,1754773839874,-460.0,0.00021516,2]
[378186591,1754773839884,-460.0,0.00021516,2]